{"text_format":"1","workbook":"xlsx","n_sheets":3,"sheets":["Daftar Inventaris","Daftar Pilihan Inventaris","Pencarian Keranjang"],"not_rendered":{"charts":0,"images":0,"macros":1,"external_links":0,"defined_names":8,"comments":0,"pivot_tables":0},"unopened":[],"bounds":{"document_bytes":16777216,"sheet_cells":100000,"rows_first":2000,"rows_last":500,"rows_between":2000,"halvings":0,"cell_chars":16384,"cell_head_chars":4096},"cells_cut":0,"cells_raw":0,"read":"whole","date_system":"1900"}

{"sheet":"Daftar Inventaris","index":0,"n_rows":15,"n_cols":11,"rows_kept":15,"cut":false,"hidden":false,"merged":[]}
[null,"DAFTAR INVENTARIS"]
[null,"NILAI INVENTARIS TOTAL:","ITEM INVENTARIS:","JUMLAH KERANJANG:","DAFTAR PILIHAN INVENTARIS","PENCARIAN KERANJANG"]
[null,{"$f":"SUM(DaftarInventaris[NILAI INVENTARIS])","v":4649},{"$f":"COUNTA(DaftarInventaris[DESKRIPSI])","v":11},{"$f":"SUMPRODUCT((1/COUNTIF(DaftarInventaris[KERANJANG '#],DaftarInventaris[KERANJANG '#]&\"\")))","v":6}]
[null,"SKU","DESKRIPSI","KERANJANG #","LOKASI","SATUAN","JML","SUSUN ULANG JML","BIAYA","NILAI INVENTARIS","SUSUN ULANG"]
[null,"SP7875","Item 1","T345",{"$f":"IFERROR(VLOOKUP(DaftarInventaris[[#This Row],[KERANJANG '#]],PencarianKeranjang[],3,FALSE),\"\")","v":"Baris 2, slot 1"},"Setiap",20,10,30,{"$f":"DaftarInventaris[[#This Row],[JML]]*DaftarInventaris[[#This Row],[BIAYA]]","v":600},{"$f":"IFERROR(IF(DaftarInventaris[[#This Row],[JML]]<=DaftarInventaris[[#This Row],[SUSUN ULANG JML]],1,0),0)","v":0}]
[null,"TR87680","Item 2","T345",{"$f":"IFERROR(VLOOKUP(DaftarInventaris[[#This Row],[KERANJANG '#]],PencarianKeranjang[],3,FALSE),\"\")","v":"Baris 2, slot 1"},"Setiap",30,15,40,{"$f":"DaftarInventaris[[#This Row],[JML]]*DaftarInventaris[[#This Row],[BIAYA]]","v":1200},{"$f":"IFERROR(IF(DaftarInventaris[[#This Row],[JML]]<=DaftarInventaris[[#This Row],[SUSUN ULANG JML]],1,0),0)","v":0}]
[null,"MK676554","Item 3","T5789",{"$f":"IFERROR(VLOOKUP(DaftarInventaris[[#This Row],[KERANJANG '#]],PencarianKeranjang[],3,FALSE),\"\")","v":"Baris 1, slot 1"},"Setiap",10,5,5,{"$f":"DaftarInventaris[[#This Row],[JML]]*DaftarInventaris[[#This Row],[BIAYA]]","v":50},{"$f":"IFERROR(IF(DaftarInventaris[[#This Row],[JML]]<=DaftarInventaris[[#This Row],[SUSUN ULANG JML]],1,0),0)","v":0}]
[null,"YE98767","Item 4","T9876",{"$f":"IFERROR(VLOOKUP(DaftarInventaris[[#This Row],[KERANJANG '#]],PencarianKeranjang[],3,FALSE),\"\")","v":"Baris 3, slot 2"},"Kotak (10 karton)",40,10,15,{"$f":"DaftarInventaris[[#This Row],[JML]]*DaftarInventaris[[#This Row],[BIAYA]]","v":600},{"$f":"IFERROR(IF(DaftarInventaris[[#This Row],[JML]]<=DaftarInventaris[[#This Row],[SUSUN ULANG JML]],1,0),0)","v":0}]
[null,"XR23423","Item 5","T098",{"$f":"IFERROR(VLOOKUP(DaftarInventaris[[#This Row],[KERANJANG '#]],PencarianKeranjang[],3,FALSE),\"\")","v":"Baris 3, slot 1"},"Setiap",12,10,26,{"$f":"DaftarInventaris[[#This Row],[JML]]*DaftarInventaris[[#This Row],[BIAYA]]","v":312},{"$f":"IFERROR(IF(DaftarInventaris[[#This Row],[JML]]<=DaftarInventaris[[#This Row],[SUSUN ULANG JML]],1,0),0)","v":0}]
[null,"PW98762","Item 6","T345",{"$f":"IFERROR(VLOOKUP(DaftarInventaris[[#This Row],[KERANJANG '#]],PencarianKeranjang[],3,FALSE),\"\")","v":"Baris 2, slot 1"},"Setiap",7,10,50,{"$f":"DaftarInventaris[[#This Row],[JML]]*DaftarInventaris[[#This Row],[BIAYA]]","v":350},{"$f":"IFERROR(IF(DaftarInventaris[[#This Row],[JML]]<=DaftarInventaris[[#This Row],[SUSUN ULANG JML]],1,0),0)","v":1}]
[null,"BM87684","Item 7","T349",{"$f":"IFERROR(VLOOKUP(DaftarInventaris[[#This Row],[KERANJANG '#]],PencarianKeranjang[],3,FALSE),\"\")","v":"Baris 1, slot 2"},"Setiap",10,5,10,{"$f":"DaftarInventaris[[#This Row],[JML]]*DaftarInventaris[[#This Row],[BIAYA]]","v":100},{"$f":"IFERROR(IF(DaftarInventaris[[#This Row],[JML]]<=DaftarInventaris[[#This Row],[SUSUN ULANG JML]],1,0),0)","v":0}]
[null,"BH67655","Item 8","T5789",{"$f":"IFERROR(VLOOKUP(DaftarInventaris[[#This Row],[KERANJANG '#]],PencarianKeranjang[],3,FALSE),\"\")","v":"Baris 1, slot 1"},"Setiap",19,10,3,{"$f":"DaftarInventaris[[#This Row],[JML]]*DaftarInventaris[[#This Row],[BIAYA]]","v":57},{"$f":"IFERROR(IF(DaftarInventaris[[#This Row],[JML]]<=DaftarInventaris[[#This Row],[SUSUN ULANG JML]],1,0),0)","v":0}]
[null,"WT98768","Item 9","T9875",{"$f":"IFERROR(VLOOKUP(DaftarInventaris[[#This Row],[KERANJANG '#]],PencarianKeranjang[],3,FALSE),\"\")","v":"Baris 2, slot 2"},"Paket (5 karton)",20,30,14,{"$f":"DaftarInventaris[[#This Row],[JML]]*DaftarInventaris[[#This Row],[BIAYA]]","v":280},{"$f":"IFERROR(IF(DaftarInventaris[[#This Row],[JML]]<=DaftarInventaris[[#This Row],[SUSUN ULANG JML]],1,0),0)","v":1}]
[null,"TS3456","Item 10","T349",{"$f":"IFERROR(VLOOKUP(DaftarInventaris[[#This Row],[KERANJANG '#]],PencarianKeranjang[],3,FALSE),\"\")","v":"Baris 1, slot 2"},"Setiap",15,8,60,{"$f":"DaftarInventaris[[#This Row],[JML]]*DaftarInventaris[[#This Row],[BIAYA]]","v":900},{"$f":"IFERROR(IF(DaftarInventaris[[#This Row],[JML]]<=DaftarInventaris[[#This Row],[SUSUN ULANG JML]],1,0),0)","v":0}]
[null,"WDG123","Item 11","T349",{"$f":"IFERROR(VLOOKUP(DaftarInventaris[[#This Row],[KERANJANG '#]],PencarianKeranjang[],3,FALSE),\"\")","v":"Baris 1, slot 2"},"Setiap",25,15,8,{"$f":"DaftarInventaris[[#This Row],[JML]]*DaftarInventaris[[#This Row],[BIAYA]]","v":200},{"$f":"IFERROR(IF(DaftarInventaris[[#This Row],[JML]]<=DaftarInventaris[[#This Row],[SUSUN ULANG JML]],1,0),0)","v":0}]

{"sheet":"Daftar Pilihan Inventaris","index":1,"n_rows":9,"n_cols":9,"rows_kept":9,"cut":false,"hidden":false,"merged":[]}
[null,"DAFTAR PILIHAN INVENTARIS"]
[null,null,"DAFTAR INVENTARIS"]
[]
[null,"URUTAN #","SKU","PILIH JML","JML TERSEDIA","DESKRIPSI ITEM","SATUAN","KERANJANG #","LOKASI"]
[null,"TP001-1","SP7875",3,{"$f":"IFERROR(VLOOKUP(DaftarInventarisPilihan[[#This Row],[SKU]],DaftarInventaris[],6,FALSE),\"\")","v":20},{"$f":"IFERROR(VLOOKUP(DaftarInventarisPilihan[[#This Row],[SKU]],DaftarInventaris[],2,FALSE),\"\")","v":"Item 1"},{"$f":"IFERROR(VLOOKUP(DaftarInventarisPilihan[[#This Row],[SKU]],DaftarInventaris[],5,FALSE),\"\")","v":"Setiap"},{"$f":"IFERROR(VLOOKUP(DaftarInventarisPilihan[[#This Row],[SKU]],DaftarInventaris[],3,FALSE),\"\")","v":"T345"},{"$f":"IFERROR(VLOOKUP(DaftarInventarisPilihan[[#This Row],[SKU]],DaftarInventaris[],4,FALSE),\"\")","v":"Baris 2, slot 1"}]
[null,"TP001-1","YE98767",1,{"$f":"IFERROR(VLOOKUP(DaftarInventarisPilihan[[#This Row],[SKU]],DaftarInventaris[],6,FALSE),\"\")","v":40},{"$f":"IFERROR(VLOOKUP(DaftarInventarisPilihan[[#This Row],[SKU]],DaftarInventaris[],2,FALSE),\"\")","v":"Item 4"},{"$f":"IFERROR(VLOOKUP(DaftarInventarisPilihan[[#This Row],[SKU]],DaftarInventaris[],5,FALSE),\"\")","v":"Kotak (10 karton)"},{"$f":"IFERROR(VLOOKUP(DaftarInventarisPilihan[[#This Row],[SKU]],DaftarInventaris[],3,FALSE),\"\")","v":"T9876"},{"$f":"IFERROR(VLOOKUP(DaftarInventarisPilihan[[#This Row],[SKU]],DaftarInventaris[],4,FALSE),\"\")","v":"Baris 3, slot 2"}]
[null,"TP001-1","BM87684",2,{"$f":"IFERROR(VLOOKUP(DaftarInventarisPilihan[[#This Row],[SKU]],DaftarInventaris[],6,FALSE),\"\")","v":10},{"$f":"IFERROR(VLOOKUP(DaftarInventarisPilihan[[#This Row],[SKU]],DaftarInventaris[],2,FALSE),\"\")","v":"Item 7"},{"$f":"IFERROR(VLOOKUP(DaftarInventarisPilihan[[#This Row],[SKU]],DaftarInventaris[],5,FALSE),\"\")","v":"Setiap"},{"$f":"IFERROR(VLOOKUP(DaftarInventarisPilihan[[#This Row],[SKU]],DaftarInventaris[],3,FALSE),\"\")","v":"T349"},{"$f":"IFERROR(VLOOKUP(DaftarInventarisPilihan[[#This Row],[SKU]],DaftarInventaris[],4,FALSE),\"\")","v":"Baris 1, slot 2"}]
[null,"TP001-1","TS3456",6,{"$f":"IFERROR(VLOOKUP(DaftarInventarisPilihan[[#This Row],[SKU]],DaftarInventaris[],6,FALSE),\"\")","v":15},{"$f":"IFERROR(VLOOKUP(DaftarInventarisPilihan[[#This Row],[SKU]],DaftarInventaris[],2,FALSE),\"\")","v":"Item 10"},{"$f":"IFERROR(VLOOKUP(DaftarInventarisPilihan[[#This Row],[SKU]],DaftarInventaris[],5,FALSE),\"\")","v":"Setiap"},{"$f":"IFERROR(VLOOKUP(DaftarInventarisPilihan[[#This Row],[SKU]],DaftarInventaris[],3,FALSE),\"\")","v":"T349"},{"$f":"IFERROR(VLOOKUP(DaftarInventarisPilihan[[#This Row],[SKU]],DaftarInventaris[],4,FALSE),\"\")","v":"Baris 1, slot 2"}]
[null,"TP001-1","MK676554",3,{"$f":"IFERROR(VLOOKUP(DaftarInventarisPilihan[[#This Row],[SKU]],DaftarInventaris[],6,FALSE),\"\")","v":10},{"$f":"IFERROR(VLOOKUP(DaftarInventarisPilihan[[#This Row],[SKU]],DaftarInventaris[],2,FALSE),\"\")","v":"Item 3"},{"$f":"IFERROR(VLOOKUP(DaftarInventarisPilihan[[#This Row],[SKU]],DaftarInventaris[],5,FALSE),\"\")","v":"Setiap"},{"$f":"IFERROR(VLOOKUP(DaftarInventarisPilihan[[#This Row],[SKU]],DaftarInventaris[],3,FALSE),\"\")","v":"T5789"},{"$f":"IFERROR(VLOOKUP(DaftarInventarisPilihan[[#This Row],[SKU]],DaftarInventaris[],4,FALSE),\"\")","v":"Baris 1, slot 1"}]

{"sheet":"Pencarian Keranjang","index":2,"n_rows":11,"n_cols":7,"rows_kept":11,"cut":false,"hidden":false,"merged":[]}
[null,"PENCARIAN KERANJANG"]
[null,"DAFTAR INVENTARIS"]
[]
[null,"KERANJANG #","DESKRIPSI","LOKASI","LEBAR","TINGGI","PANJANG"]
[null,"T345","Keranjang besar","Baris 2, slot 1",50,10,10]
[null,"T5789","Keranjang kecil","Baris 1, slot 1",25,5,5]
[null,"T9876","Keranjang besar","Baris 3, slot 2",50,10,10]
[null,"T098","Keranjang medium","Baris 3, slot 1",30,7,10]
[null,"T349","Keranjang kecil","Baris 1, slot 2",25,5,5]
[null,"T5789","Keranjang besar","Baris 4, slot 5",50,10,10]
[null,"T9875","Keranjang besar","Baris 2, slot 2",50,10,10]